lending/lending_fUSD_20240207
["ID","MTS","AMOUNT","RATE_DAILY","PERIOD"]
[313423162,1707330632312,-1225.47377789,0.00022797,2]
[313423163,1707330632322,-400.0,0.00022797,2]
[313423164,1707330632333,-160.0,0.00022798,2]
[313423165,1707330632343,-9963.51396675,0.00022799,2]
[313423174,1707330632481,-101751.36923768,0.00022799,2]
[313423177,1707330632493,-1499.715,0.00022799,2]
[313423180,1707330632509,-3350.11903617,0.00022799,2]
[313423182,1707330632521,-517.41,0.00022799,2]
[313423232,1707330632823,-668.42443712,0.00022799,2]
[313423233,1707330632848,-7098.76328458,0.00022799,2]
[313423234,1707330632873,-13170.76680101,0.00022799,2]
[313423247,1707330638202,-668.50793059,0.00022799,2]
[313423248,1707330638215,-26312.29792726,0.00022799,2]
[313423249,1707330638227,-369.77723094,0.00022799,2]
[313423250,1707330638239,-280.0,0.00022799,2]
[313423251,1707330638252,-13473.50287427,0.00022799,2]
[313423252,1707330638273,-65875.83227363,0.00022799,2]
[313423253,1707330638283,-499.99,0.00022799,2]
[313423254,1707330638292,-1000.0,0.0002303,2]
[313423255,1707330638302,-10666.96167776,0.00023406,2]
[313423256,1707330638315,-1000.72525711,0.00023406,2]
[313423257,1707330638433,-405.72493946,0.00023406,2]
[313423258,1707330638446,-6721.13279701,0.00023406,2]
[313423259,1707330638459,-446.13270163,0.00023406,2]
[313423260,1707330638471,-1869.89312,0.00023406,2]
[313423405,1707330640955,-2339.26428264,0.00023406,2]
[313423408,1707330640972,-450.16522439,0.00023406,2]
[313423410,1707330640982,-162.91,0.00023549,2]
[313423412,1707330640991,-153.32,0.00023697,2]
[313423414,1707330641000,-150.23,0.00023726,2]
[313423416,1707330641010,-150.23,0.00023902,2]
[313423418,1707330641019,-150.23,0.00024079,2]
[313423420,1707330641028,-150.23,0.00024255,2]
[313423422,1707330641037,-178.84,0.00024384,2]
[313423423,1707330641046,-150.23,0.00024432,2]
[313423425,1707330641055,-150.23,0.00024609,2]
[313423427,1707330641064,-250.0,0.00024658,2]
[313423428,1707330641073,-150.23,0.00024785,2]
[313423430,1707330641082,-150.23,0.00024962,2]
[313423432,1707330641092,-435.26585824,0.00025,2]
[313423434,1707330641101,-350.0,0.00025,3]
[313423436,1707330641111,-216.029192,0.00025609,2]
[313423440,1707330641154,-33.970808,0.00025609,2]
[313423442,1707330641164,-2000.0,0.00025698,2]
[313423444,1707330641173,-1000.0,0.00025909,2]
[313423446,1707330641182,-150.0,0.00026079,2]
[313423447,1707330641191,-153.32,0.00026227,2]
[313423449,1707330641201,-400.0,0.00027,3]
[313423451,1707330641210,-500.0,0.00027,7]
[313423453,1707330641219,-500.0,0.00027,7]
[313423455,1707330641228,-63.72309368,0.00027349,2]
[313423480,1707330641520,-174.10699441,0.00027349,2]
[313423482,1707330641529,-153.32,0.00028757,2]
[313423484,1707330641538,-1000.0,0.00028788,2]
[313423486,1707330641548,-450.0,0.00029,3]
[313423488,1707330641558,-157.7275456,0.00029279,2]
[313423490,1707330641567,-155.0,0.0003,2]
[313423491,1707330641576,-500.0,0.00031,3]
[313423493,1707330641586,-153.32,0.00031288,2]
[313423495,1707330641596,-1000.0,0.00031667,2]
[313423497,1707330641607,-237.83008809,0.00032,2]
[313423499,1707330641616,-250.0,0.00032153,2]
[313423501,1707330641626,-169.86851377,0.00032506,7]
[313423503,1707330641635,-156.7533218,0.00032506,7]
[313423505,1707330641645,-167.03525423,0.00032506,7]
[313423506,1707330641654,-338.65875546,0.00032506,7]
[313423508,1707330641664,-189.94700645,0.00032818,7]
[313423510,1707330641673,-550.0,0.00033,3]
[313423512,1707330641682,-15095.24958598,0.0003316,10]
[313423514,1707330641692,-4945.35691419,0.0003316,10]
[313423516,1707330641701,-6901.39359836,0.0003316,10]
[313423518,1707330641711,-153.97,0.000337,2]
[313423520,1707330641720,-153.97,0.000337,2]
[313423522,1707330641729,-153.97,0.000337,2]
[313423523,1707330641739,-153.32,0.00033818,2]
[313423525,1707330641748,-514.97547318,0.000349,2]
[313423527,1707330641757,-157.7275456,0.00036089,2]
[313423529,1707330641766,-153.32,0.00036348,2]
[313423531,1707330641776,-7999.99,0.00036369,14]
[313423533,1707330641786,-205.0,0.00036387,2]
[313423535,1707330641795,-237.83008809,0.0003665,2]
[313423537,1707330641805,-52739.35632911,0.00037,4]
[313423538,1707330641814,-153.97,0.000382,3]
[313423540,1707330641824,-153.97,0.000382,3]
[313423542,1707330641833,-153.97,0.000382,3]
[313423544,1707330641843,-152.77,0.00038356,2]
[313423569,1707330642207,-3692.85,0.00038678,2]
[313423571,1707330642218,-153.32,0.00038878,2]
[313423573,1707330642228,-271.67759373,0.0003888,2]
[313423575,1707330642237,-152.77,0.00039726,2]
[313423577,1707330642247,-49049.46022809,0.0003999,5]
[313423582,1707330642284,-10990.7357,0.0003999,5]
[313423584,1707330642296,-5663.52080731,0.0003999,5]
[313423587,1707330642308,-1077.41571,0.0003999,5]
[313423591,1707330642398,-941.8627081,0.0003999,5]
[313423592,1707330642431,-9231.6997665,0.0003999,5]
[313423593,1707330642441,-166.64100809,0.0003999,2]
[313423594,1707330642450,-3649.39572541,0.0004,10]
[313423595,1707330642461,-3125.18706403,0.0004,10]
[313423596,1707330642473,-17281.74036797,0.0004,10]
[313423623,1707330643183,-75943.67684259,0.0004,10]
[313423626,1707330643192,-211.97217471,0.000409,16]
[313423628,1707330643201,-399.0,0.00040936,2]
[313423629,1707330643210,-200.0,0.00040987,2]
[313423630,1707330643220,-76954.69492,0.0004099,6]
[313423631,1707330643229,-100000.0,0.00041,11]
[313423632,1707330643238,-152.77,0.00041096,2]
[313423633,1707330643247,-205.0,0.0004111,13]
[313423634,1707330643256,-211.9721747,0.0004125,17]
[313423635,1707330643266,-157.25879482,0.000413,15]
[313423636,1707330643275,-153.05272113,0.000413,11]
[313423637,1707330643284,-545.65684056,0.000413,2]
[313423638,1707330643293,-237.83008809,0.000413,2]
[313423639,1707330643303,-166.64100809,0.0004133,2]
[313423640,1707330643312,-439081.6045226,0.00041339,3]
[313423641,1707330643325,-4540.0,0.00041339,3]
[313423642,1707330643338,-251329.61602686,0.00041339,3]
[313423643,1707330643354,-1911.42038422,0.00041339,3]
[313423644,1707330643366,-40447.25352643,0.00041339,3]
[313423645,1707330643382,-2387.16426942,0.00041339,3]
[313423659,1707330646264,-932.54314952,0.00041338,4]
[313423660,1707330646273,-108.93496023,0.00041339,30]
[313423661,1707330646321,-41.06503977,0.00041339,30]
[313423662,1707330646333,-17944.27719084,0.00041339,3]
[313423663,1707330646343,-384773.4746,0.0004134,7]
[313423664,1707330646357,-1000.0,0.000414,2]
[313423665,1707330646367,-153.32,0.00041408,2]
[313423666,1707330646377,-14679.00163838,0.000419,30]
[313423667,1707330646386,-200.0,0.00041987,2]
[313423668,1707330646396,-2476.56354704,0.00042,4]
[313423669,1707330646406,-76954.69492,0.0004219,8]
[313423670,1707330646416,-100000.0,0.000422,12]
[313423671,1707330646426,-152.77,0.00042466,2]
[313423672,1707330646436,-1000.0,0.00042629,15]
[313423673,1707330646445,-153.97,0.000427,4]
[313423674,1707330646456,-153.97,0.000427,4]
[313423675,1707330646466,-153.97,0.000427,4]
[313423676,1707330646475,-5000.0,0.00042779,3]
[313423677,1707330646484,-167.3343983,0.000428,17]
[313423678,1707330646493,-12278.089,0.000429,2]
[313423679,1707330646503,-10929.19961994,0.000429,2]
[313423680,1707330646521,-32650.92860337,0.000429,2]
[313423681,1707330646551,-9115.44803519,0.000429,2]
[313423682,1707330646572,-10367.52282993,0.000429,2]
[313423683,1707330646593,-255.0,0.000429,2]
[313423684,1707330646605,-13241.90885032,0.000429,2]
[313423853,1707330841685,157.7275456,0.00022489,2]
[313423854,1707330925989,154.06,0.00021631,2]
[313423855,1707331367797,28.82706942,0.00021631,2]
[313423856,1707331367821,125.39293058,0.00021631,2]
[313423873,1707331688854,-545.13775396,0.00022505,2]
[313423874,1707331688875,-286.55817124,0.00022505,2]
[313423875,1707331688896,-300.0,0.00022505,2]
[313423876,1707331688918,-155.0,0.00022506,2]
[313423877,1707331688939,-303.47619205,0.00022506,2]
[313423878,1707331688960,-3099.82788275,0.00022506,2]
[313423879,1707331712598,388.56406727,0.00022501,2]
[313423880,1707331713188,403.50024234,0.00022501,2]
[313423881,1707331713212,123.79358748,0.00022501,2]
[313423882,1707331727382,-261.26592627,0.00022502,2]
[313423883,1707331727406,-155.0,0.00022502,2]
[313423884,1707331727431,-155.0,0.00022503,2]
[313423885,1707331727454,-155.0,0.00022503,2]
[313423886,1707331727478,-1041.04719538,0.00022503,2]
[313423887,1707331727501,-2302.81734004,0.00022503,2]
[313423888,1707331727598,-155.0,0.00022504,2]
[313423889,1707331727620,-344.79570703,0.00022504,2]
[313423890,1707331727643,-1000.0,0.00023549,2]
[313423891,1707331727667,-2720.07383128,0.00023549,2]
[313423918,1707331832348,-1498.83714,0.00023549,2]
[313423920,1707331832397,-1191.63461506,0.00023549,2]
[313423921,1707331832409,-481.13236969,0.00023549,2]
[313423922,1707331832422,-361.40717381,0.00023549,2]
[313423923,1707331832441,-17646.91487016,0.00023549,2]
[313423924,1707331832451,-163.87452071,0.00023625,2]
[313423925,1707331832461,-499.99,0.00024344,2]
[313423926,1707331832470,-394.0,0.00024443,2]
[313423927,1707331832480,-250.0,0.00024658,2]
[313423928,1707331832490,-3766.76,0.00024962,2]
[313423929,1707331832499,-154.22,0.00025216,2]
[313423930,1707331832509,-1000.0,0.00026493,2]
[313423931,1707331832518,-154.22,0.000288,2]
[313423932,1707331832528,-22415.38,0.000288,2]
[313423933,1707331832537,-1000.0,0.00029436,2]
[313423934,1707331832547,-164.02,0.00030216,2]
[313423935,1707331832557,-150.0,0.0003054,2]
[313423936,1707331832566,-160.27,0.00030604,2]
[313423937,1707331832576,-250.0,0.0003062,2]
[313423938,1707331832585,-2000.0,0.00030728,2]
[313423939,1707331832595,-155.0,0.00031319,4]
[313423940,1707331832605,-178.84,0.0003132,2]
[313423941,1707331832614,-157.85,0.00031464,2]
[313423943,1707331832624,-1398.71984024,0.00031618,4]
[313423945,1707331832633,-297.29,0.00031619,2]
[313423947,1707331832642,-157.85,0.00032284,2]
[313423949,1707331832651,-1000.0,0.0003238,2]
[313423951,1707331832660,-154.22,0.00032385,2]
[313423953,1707331832670,-3623.6556,0.00032775,2]
[313423954,1707331832680,-508.59493734,0.00032876,7]
[313423956,1707331832692,-1050.64516846,0.00032876,7]
[313423959,1707331832705,-865.14657609,0.00032876,7]
[313423961,1707331832748,-590.0394705,0.00032876,7]
[313423962,1707331832761,-3698.8629852,0.00032876,7]
[313423963,1707331832773,-956.04024014,0.00032876,7]
[313423964,1707331832783,-2160.36226235,0.00032876,7]
[313423965,1707331832793,-1023.81346983,0.00032876,7]
[313423966,1707331832803,-152.88166239,0.00032876,7]
[313423967,1707331832812,-167.03525422,0.00032876,7]
[313423968,1707331832822,-157.85,0.00033104,2]
[313423969,1707331832831,-195.1198,0.00033113,2]
[313423970,1707331832841,-2500.0,0.00033122,2]
[313423971,1707331832850,-230.43314597,0.00033122,6]
[313423972,1707331832859,-184.96227971,0.00033122,2]
[313423973,1707331832869,-500.0,0.00033211,4]
[313423974,1707331832879,-302.6076808,0.00033211,2]
[313423975,1707331832889,-414.05570126,0.00033211,4]
[313423976,1707331832898,-426.15835551,0.00033211,4]
[313423977,1707331832908,-161.32750904,0.00033211,4]
[313423978,1707331832917,-315.73957952,0.00033211,4]
[313423979,1707331832926,-357.37231022,0.00033211,4]
[313423980,1707331832936,-283.94264868,0.00033211,4]
[313423981,1707331832945,-204.25040272,0.00033211,4]
[313423982,1707331832955,-164.24532028,0.00033211,4]
[313423983,1707331832964,-155.9110895,0.00033211,4]
[313423984,1707331832973,-1776.73840587,0.00033211,4]
[313423985,1707331832982,-7812.84831677,0.00033211,4]
[313423986,1707331832991,-500.0,0.00033211,7]
[313423987,1707331833001,-27141.9247798,0.00033212,4]
[313423988,1707331833010,-169.73361424,0.00033212,2]
[313423989,1707331833019,-100000.0,0.00033213,2]
[313423990,1707331833028,-252262.53834787,0.00033222,2]
[313423991,1707331833041,-965.965,0.00033222,2]
[313423992,1707331833065,-278872.42742772,0.00033222,2]
[313423993,1707331833075,-500.0,0.00033222,7]
[313423994,1707331833084,-251.38421037,0.00033222,7]
[313423995,1707331833093,-141808.2001,0.00033223,2]
[313423996,1707331833103,-853.974,0.00033223,2]
[313423997,1707331833112,-1000.0,0.00033223,2]
[313423998,1707331833122,-500.0,0.00033223,2]
[313423999,1707331833132,-155.0,0.00033321,4]
[313424000,1707331833141,-36537.79985329,0.00033324,10]
[313424001,1707331833150,-388.79306543,0.00033324,10]
[313424002,1707331833171,-595.25120831,0.00033324,10]
[313424011,1707331838378,-1711.60859331,0.00033324,10]
[313424012,1707331838391,-1261.7050684,0.00033324,10]
[313424013,1707331838551,-6376.13980154,0.00033324,10]
[313424014,1707331838560,-5166.7488685,0.00033324,10]
[313424015,1707331838570,-1366.06143015,0.00033324,10]
[313424016,1707331838580,-4162.48220085,0.00033324,10]
[313424017,1707331838590,-154.06,0.000337,2]
[313424018,1707331838599,-180.0,0.00034342,2]
[313424019,1707331838608,-150.0,0.00034548,10]
[313424020,1707331838618,-48.171387,0.000349,2]
[313424021,1707331838630,-466.80408618,0.000349,2]
[313424022,1707331838639,-230.43314595,0.00035189,7]
[313424023,1707331838649,-1000.0,0.00035323,2]
[313424024,1707331838659,-297.29,0.00035572,2]
[313424025,1707331838669,-154.22,0.00035969,2]
[313424026,1707331838678,-2040.0,0.000371,3]
[313424027,1707331838687,-8790.72444839,0.000371,3]
[313424028,1707331838729,-3699.40129594,0.000371,3]
[313424206,1707331843433,-531.84549643,0.00033123,2]
[313424207,1707331843443,-375.18085056,0.00037099,4]
[313424208,1707331843453,-93.87425567,0.000371,3]
[313424209,1707331843462,-230.43314595,0.00037256,8]
[313424210,1707331843471,-270.80645528,0.000378,2]
[313424211,1707331843483,-1855.68898327,0.000378,2]
[313424212,1707331843505,-208.97817004,0.000378,2]
[313424213,1707331843524,-774.28328207,0.000378,2]
[313424214,1707331843536,-877.77369862,0.000378,2]
[313424215,1707331843547,-2090.92612036,0.000378,2]
[313424216,1707331843559,-2839.27585334,0.000378,2]
[313424217,1707331843568,-164.44387204,0.000378,11]
[313424218,1707331843578,-293.83221571,0.000378,11]
[313424219,1707331843587,-157.25879481,0.000378,11]
[313424220,1707331843596,-153.04722064,0.000378,2]
[313424221,1707331843605,-5218.77369504,0.000379,3]
[313424222,1707331843616,-320.693134,0.000379,3]
[313424223,1707331843636,-1045.82126318,0.000379,3]
[313424224,1707331843648,-344.10978337,0.000379,3]
[313424225,1707331843664,-6877.42618486,0.000379,3]
[313424226,1707331843676,-933.97462137,0.000379,3]
[313424227,1707331843688,-427.149998,0.000379,3]
[313424228,1707331843700,-1502.81579274,0.000379,3]
[313424229,1707331843719,-784.89644254,0.000379,3]
[313424249,1707331846340,-328501.59102518,0.000379,3]
[313424250,1707331846349,-104459.84999918,0.000379,2]
[313424251,1707331846403,-9564.71735957,0.000379,2]
[313424252,1707331846417,-3551.56677062,0.000379,2]
[313424253,1707331846429,-599.27979208,0.000379,2]
[313424254,1707331846441,-151038.78144075,0.000379,2]
[313424255,1707331846461,-339.18297734,0.000379,2]
[313424256,1707331846522,-459.91149139,0.000379,2]
[313424257,1707331846534,-547.14728247,0.000379,2]
[313424258,1707331846545,-179113.2343726,0.000379,2]
[313424259,1707331846554,-1406.58894256,0.00038,2]
[313424260,1707331846564,-670.20951283,0.00038,2]
[313424261,1707331846574,-333.37487793,0.000381,2]
[313424262,1707331846583,-1640.1395197,0.000381,2]
[313424263,1707331846593,-154.06,0.000382,3]
[313424264,1707331846602,-152.77,0.00038356,2]
[313424265,1707331846611,-293.8322157,0.0003869,12]
[313424266,1707331846620,-244.50983433,0.0003888,2]
[313424267,1707331846630,-244.50983432,0.0003888,2]
[313424268,1707331846642,-244.50983432,0.0003888,2]
[313424269,1707331846651,-244.50983432,0.0003888,2]
[313424270,1707331846661,-230.43314595,0.00039323,9]
[313424271,1707331846670,-297.29,0.00039524,2]
[313424272,1707331846679,-154.22,0.00039553,2]
[313424273,1707331846688,-293.8322157,0.0003958,13]
[313424274,1707331846698,-1060.48756115,0.00039988,4]
[313424275,1707331846708,-191.36685827,0.00039988,4]
[313424276,1707331846720,-396.53188178,0.00039988,15]
[313424278,1707331846729,-1719.10503118,0.00039989,4]
[313424280,1707331846738,-169.73361424,0.0003999,2]
[313424281,1707331846747,-67540.46299504,0.0004,10]
[313424282,1707331846760,-550.69565633,0.0004,10]
[313424283,1707331846780,-1005.41537978,0.0004,10]
[313424284,1707331846854,-293.72289263,0.0004,10]
[313424285,1707331846873,-30609.70307622,0.0004,10]
[313424286,1707331846884,-1005.87284727,0.0004,2]
[313424287,1707331846894,-583.32254342,0.0004,30]
[313424288,1707331846903,-158.13885783,0.0004,30]
[313424289,1707331846912,-152.77,0.00040274,2]
[313424290,1707331846922,-150.0,0.00040299,30]
[313424291,1707331846931,-293.8322157,0.0004047,14]
[313424292,1707331846941,-244.50983432,0.00040518,2]
[313424293,1707331846952,-89934.7342972,0.0004099,6]
[313424294,1707331846963,-69299.34604232,0.00041,11]
[313424295,1707331846975,-12032.78355283,0.00041,11]
[313424296,1707331847187,-856.3240674,0.00041,11]
[313424297,1707331847199,-473.11364916,0.00041,11]
[313424298,1707331847218,-409.20495899,0.00041,11]
[313424299,1707331847229,-253.8728,0.00041,11]
[313424300,1707331847258,-309.18,0.00037098,4]
[313424301,1707331847269,-1089.53984024,0.00037098,4]
[313424302,1707331847279,-168.90344477,0.00041,11]
[313424304,1707332051459,793.66365271,0.0002,2]
[313424305,1707332051485,164.45634729,0.0002,2]
[313424307,1707332739572,258.11,0.00022,2]
[313424308,1707332740848,453.61328073,0.00022137,2]
[313424358,1707333031484,-155.0,0.00022763,2]
[313424361,1707333031494,-271.34,0.00022764,2]
[313424367,1707333031539,-769.70719538,0.00022764,2]
[313424369,1707333031548,-388.61263591,0.00022765,2]
[313424370,1707333031557,-355.95779342,0.00022766,2]
[313424372,1707333031566,-247.72543542,0.00022767,2]
[313424374,1707333031576,-1921.93781225,0.00022767,2]
[313424376,1707333031604,-33.08613539,0.00022767,2]
[313424378,1707333031613,-923.82174071,0.00022773,2]
[313424383,1707333031653,-184.17825929,0.00022773,2]
[313424385,1707333031662,-1279.7495,0.00022797,2]
[313424387,1707333031672,-150.0,0.00022896,2]
[313424389,1707333031682,-376.8417,0.00022897,2]
[313424391,1707333031691,-900.3741,0.00022897,2]
[313424393,1707333031700,-2201.9674,0.00022897,2]
[313424394,1707333031710,-4701.57671567,0.00022897,2]
[313424400,1707333031755,-20048.51278433,0.00022897,2]
[313424402,1707333031764,-1685.0963,0.00022897,2]
[313424404,1707333031773,-221.48933488,0.000229,2]
[313424406,1707333031782,-157.12570228,0.000229,2]
[313424408,1707333031792,-531.84549636,0.000229,2]
[313424410,1707333031801,-499.99,0.00022987,2]
[313424412,1707333031810,-6348.61,0.00022987,2]
[313424414,1707333031819,-170.27889007,0.0002299,2]
[313424416,1707333031828,-315.43231307,0.00022995,2]
[313424418,1707333031838,-475.01252953,0.00022996,2]
[313424420,1707333031847,-222.10743328,0.00022996,2]
[313424422,1707333031856,-77720.85515273,0.00022997,2]
[313424425,1707333032056,-14594.68756448,0.00022997,2]
[313424426,1707333032068,-3388.2488,0.00022997,2]
[313424430,1707333037535,-1712.18351899,0.00022997,2]
[313424431,1707333037547,-3691.64847901,0.00022997,2]
[313424432,1707333037594,-481.70408771,0.00022997,2]
[313424433,1707333037606,-2158.24505822,0.00022997,2]
[313424434,1707333037617,-39643.82160772,0.00022997,2]
[313424435,1707333037628,-384.24477354,0.00022997,2]
[313424436,1707333037647,-6043.14688264,0.00022997,2]
[313424437,1707333037659,-417.38077335,0.00022997,2]
[313424438,1707333037670,-406.46916604,0.00022997,2]
[313424439,1707333037703,-40893.94569249,0.00022997,2]
[313424440,1707333037715,-22619.37001143,0.00022997,2]
[313424441,1707333037725,-762.26,0.00022997,2]
[313424442,1707333037734,-483.32650607,0.00022998,2]
[313424443,1707333037743,-218.01605577,0.00022998,2]
[313424444,1707333037752,-159.26253707,0.00022998,2]
[313424445,1707333037762,-158.90038508,0.00022998,2]
[313424446,1707333037771,-345.084011,0.00022998,2]
[313424447,1707333037781,-1004.07625905,0.00022998,2]
[313424448,1707333037790,-4281.45374729,0.00022998,2]
[313424449,1707333037807,-2850.64964616,0.00022999,2]
[313424450,1707333037825,-9663.15409328,0.00022999,2]
[313424451,1707333037845,-863.62005204,0.00022999,2]
[313424452,1707333037854,-9.85994796,0.00022999,2]
[313424453,1707333037866,-300.14005204,0.00022999,2]
[313424454,1707333037875,-3165.13994796,0.00023,2]
[313424455,1707333037887,-1703.428056,0.00023,2]
[313424456,1707333037898,-326.45,0.00023,2]
[313424457,1707333037910,-52167.44029634,0.00023,2]
[313424458,1707333037933,-667.40423492,0.00023,2]
[313424459,1707333037945,-729.74969985,0.00023,2]
[313424460,1707333037957,-1631.5164132,0.00023,2]
[313424461,1707333037968,-636.9005323,0.00023,2]
[313424610,1707333040060,-1651.6600008,0.00023,2]
[313424611,1707333040221,-546.83882377,0.00023,2]
[313424612,1707333040233,-24174.97151225,0.00023,2]
[313424613,1707333040277,-2889.00014,0.00023,2]
[313424614,1707333040924,-4363.2,0.00023,2]
[313424617,1707333042538,-311.71061031,0.00022999,2]
[313424618,1707333042548,-221701.44498078,0.00023,2]
[313424619,1707333042594,-3131.39812558,0.00023,2]
[313424620,1707333042651,-388.93617367,0.00023,2]
[313424621,1707333042664,-736.19868147,0.00023,2]
[313424622,1707333042707,-390.23883822,0.00023,2]
[313424623,1707333042720,-2295.84122358,0.00023,2]
[313424624,1707333042732,-386.73367012,0.00023,2]
[313424625,1707333042767,-464.9119998,0.00023,2]
[313424626,1707333042782,-316.68680525,0.00023,2]
[313424627,1707333042823,-8751.2676,0.00023,2]
[313424628,1707333042835,-275348.46629988,0.00023,2]
[313424648,1707333046461,-1955.02394764,0.00022998,2]
[313424649,1707333046471,-24435.9577797,0.00022998,2]
[313424650,1707333046480,-11061.89039066,0.00023,2]
[313424651,1707333046492,-38489.8427746,0.00023,2]
[313424652,1707333046504,-12371.6205,0.00023,2]
[313424653,1707333046515,-59823.29833752,0.00023,2]
[313424654,1707333046527,-12767.9459,0.00023,2]
[313424655,1707333046539,-8744.92428944,0.00023,2]
[313424656,1707333046548,-32235.82795356,0.00023,2]
[313424657,1707333046557,-154.75,0.00023058,2]
[313424658,1707333046567,-178.84,0.00024384,2]
[313424659,1707333046576,-160.27,0.0002453,2]
[313424660,1707333046585,-170.14,0.00024849,2]
[313424661,1707333046595,-198.19,0.00026084,2]
[313424662,1707333046604,-170.14,0.00026144,2]
[313424663,1707333046613,-240.3,0.00026221,2]
[313424664,1707333046623,-2000.0,0.00026356,2]
[313424665,1707333046632,-150.0,0.00026614,2]
[313424666,1707333046641,-23900.0,0.00027492,2]
[313424667,1707333046650,-154.75,0.00027837,2]
[313424668,1707333046659,-200.0,0.00028,2]
[313424669,1707333046669,-160.27,0.0002864,2]
[313424670,1707333046678,-211.23,0.00029272,2]
[313424671,1707333046688,-157.12570228,0.00029308,2]
[313424672,1707333046698,-183.36,0.00032,2]
[313424673,1707333046707,-198.19,0.00032605,2]
[313424674,1707333046717,-154.75,0.00032616,2]
[313424675,1707333046727,-160.27,0.00032749,2]
[313424676,1707333046736,-1049.63814218,0.00032876,7]
[313424677,1707333046845,-2007.72017787,0.00032876,7]
[313424678,1707333046855,-2482.2952942,0.00032876,7]
[313424679,1707333046865,-1535.80020816,0.00032876,7]
[313424680,1707333046874,-3276.92790305,0.00033113,2]
[313424681,1707333046886,-2809.46370491,0.00033113,2]
[313424682,1707333047038,-628.886376,0.00033113,2]
[313424683,1707333047049,-93284.72201604,0.00033113,2]
[313424684,1707333047058,-500.0,0.00033113,2]
[313424685,1707333047067,-60482.58,0.00033113,2]
[313424686,1707333047078,-1998.16935171,0.00033258,28]
[313424687,1707333047087,-8330.54397228,0.00033324,10]
[313424688,1707333047096,-10752.68379781,0.00033324,10]
[313424689,1707333047107,-1655.32081455,0.00033324,10]
[313424690,1707333047116,-154.09,0.000337,2]
[313424691,1707333047126,-152.73687596,0.000339,2]
[313424692,1707333047135,-547.44738093,0.000349,2]
[313424693,1707333047144,-547.44738085,0.000349,2]
[313424694,1707333047153,-547.44738085,0.000349,2]
[313424695,1707333047163,-547.44738085,0.000349,2]
[313424696,1707333047173,-157.12570228,0.00035715,8]
[313424697,1707333047182,-183.36,0.00036,2]
[313424698,1707333047191,-547.44738085,0.00036233,2]
[313424699,1707333047202,-152.73687595,0.00037385,2]
[313424700,1707333047211,-154.75,0.00037396,2]
[313424701,1707333047220,-1825.46117902,0.000378,2]
[313424702,1707333047229,-175.49413068,0.000378,2]
[313424703,1707333047239,-23137.78950002,0.0003788,2]
[313424704,1707333047248,-3204.40059553,0.00037897,4]
[313424705,1707333047258,-3223.02009537,0.00037897,4]
[313424706,1707333047267,-278.50476308,0.00037898,4]
[313424707,1707333047276,-1754.40375526,0.00037898,4]
[313424708,1707333047285,-4650.70677588,0.00037899,4]
[313424709,1707333047295,-50812.71133861,0.000379,2]
[313424710,1707333047333,-599.27979208,0.000379,2]
[313424711,1707333047349,-7215.42242601,0.000379,2]
[313424713,1707333188574,-339.07091245,0.00022879,2]
[313424714,1707333188595,-1973.92908755,0.00022879,2]
[313424715,1707333698820,380.54896629,0.00022781,5]
[313424716,1707333706801,170.8245059,0.00022879,7]
[313424717,1707333711639,223.97216913,0.00022553,4]
[313424718,1707333720763,41.27761217,0.00022277,2]
[313424719,1707333721092,158.72238783,0.00022277,2]
[313424720,1707333723364,758.73485236,0.00022277,2]
[313424721,1707333723388,917.45724019,0.00022277,2]
[313424722,1707333723412,323.80790745,0.00022277,2]
[313424723,1707333727714,500.0,0.00022204,2]
[313424724,1707333729623,198.03775264,0.0002255,4]
[313424725,1707333736022,93.64933274,0.00022089,2]
[313424726,1707333736046,106.35066726,0.00022089,2]
[313424727,1707333763855,811.10657293,0.00022084,2]
[313424728,1707333763879,1893.89342707,0.00022084,2]